Cogmind - Beta 11.1 @@@ ROGUE MODE // 2022.05.22 @ 12:48:19 Player: ChromeKnight Result: Self-destructed Performance ------------- Evolutions (3) 1500 Regions Visited (6) 1200 Robots Destroyed (54) 270 Value Destroyed (1365) 1365 Prototype IDs (2) 40 Alien Tech Used (0) 0 Bonus (178) 178 TOTAL SCORE: 4553 Bonus ------- Follower Combat Kills 178 Cogmind --------- Core Integrity 515/700 Matter 168/300 Energy 290/290 System Corruption 0% Temperature Cool (0) Movement Walking (125) Location -7/Factory Parts ------- > --- POWER (1) -------- Improved Deuterium Engine > --- PROPULSION (2) --- Improved Aluminum Leg Improved Titanium Leg > --- UTILITY (8) ------ Improved Heat Sink Medium Storage Unit Sensor Array Improved Signal Interpreter Improved Targeting Computer Target Analyzer Utility Shielding > --- WEAPON (2) ------- Enhanced Autogun Gauss Cannon > --- INVENTORY (10) --- Carbon-fiber Leg Targeting Computer Hardened Medium Armor Plating Hardened Medium Armor Plating Long-range Tractor Beam Enhanced Autogun Flak Gun Flak Gun Gauss Cannon Slug Cannon Peak State ------------ > --- POWER ------------ Light Angular Momentum Engine > --- PROPULSION ------- Carbon-fiber Leg Improved Titanium Leg > --- UTILITY ---------- Medium Storage Unit Sensor Array Improved Signal Interpreter Improved Targeting Computer Target Analyzer Propulsion Shielding Utility Shielding Shock Absorption System > --- WEAPON ----------- Enhanced Autogun Enhanced Autogun > --- INVENTORY -------- Aluminum Leg Improved Aluminum Leg Carbon-fiber Leg Targeting Computer Hardened Medium Armor Plating Enhanced Autogun Enhanced Autogun Flak Gun Gauss Cannon Slug Cannon [Rating: 39] Favorites ----------- Power Light Nuclear Core Engine Light Angular Momentum Engine Power Core Light Nuclear Core Propulsion Compact Wheel Treads Light Treads Leg Carbon-fiber Leg Wheel Compact Wheel Utility Hardened Light Armor Plating Device Sensor Array Storage Large Storage Unit Processor Target Analyzer Protection Hardened Light Armor Plating Weapon Flail Ballistic Gun Enhanced Autogun Ballistic Cannon Gauss Cannon Impact Weapon Flail Slashing Weapon Makeshift Axe Build | -11 -10 -10 -9 -9 -8 -7 ------- Run | Scr Mat Min Mat Min Mat Fac Slots Evolved 6 | . . . 2 . 2 2 Power . | . . . . . . . Propulsion . | . . . . . . . Utility 6 | . . . 2 . 2 2 Weapon . | . . . . . . . Parts Attached 62 | 8 16 2 4 1 14 17 Power 9 | 1 4 1 . . 1 2 Engine 7 | 1 4 . . . . 2 Core 2 | . . 1 . . 1 . Reactor . | . . . . . . . Propulsion 14 | 4 4 1 . 1 1 3 Treads 4 | 2 2 . . . . . Leg 7 | 2 . . . 1 1 3 Wheel 3 | . 2 1 . . . . Hover . | . . . . . . . Flight . | . . . . . . . Utility 23 | 1 3 . 3 . 7 9 Device 3 | . . . . . . 3 Storage 3 | 1 1 . . . . 1 Processor 6 | . . . . . 5 1 Hackware . | . . . . . . . Protection 11 | . 2 . 3 . 2 4 Artifact . | . . . . . . . Weapon 16 | 2 5 . 1 . 5 3 Energy Gun . | . . . . . . . Energy Cannon . | . . . . . . . Ballistic Gun 9 | 2 2 . . . 4 1 Ballistic Cannon 2 | . . . . . . 2 Launcher . | . . . . . . . Special Weapon . | . . . . . . . Impact Weapon 4 | . 3 . 1 . . . Slashing Weapon 1 | . . . . . 1 . Piercing Weapon . | . . . . . . . Special Melee Weapon . | . . . . . . . Unidentified Prototypes 2 | . . . . . 2 . Parts Lost 9 | . 2 1 . 2 . 4 Power 2 | . 1 . . . . 1 Propulsion 4 | . 1 1 . 1 . 1 Utility 3 | . . . . 1 . 2 Weapon . | . . . . . . . Highest Loss Streak 3 | . 1 1 . 2 . 3 To Critical Strikes . | . . . . . . . Average Slot Usage (%) 92 | . 83 99 92 89 97 98 Engine 3 | . 4 6 . . . 6 Core 3 | . . 7 11 11 9 . Treads 7 | . 21 . . . . . Leg 6 | . . . . 1 15 14 Wheel 6 | . 3 27 22 15 2 . Device 2 | . . . . . . 8 Storage 10 | . 14 14 11 11 9 7 Processor 9 | . . . . . 23 23 Protection 17 | . 11 14 25 27 19 20 Ballistic Gun 5 | . 5 . . . 12 9 Ballistic Cannon 1 | . . . . . . 4 Impact Weapon 14 | . 22 28 22 22 4 . Naked Turns . | . . . . . . . Heaviest Build 38 | 12 34 34 36 34 37 38 Greatest Support 40 | 40 40 32 32 32 25 35 Greatest Overweight (x) 2 | 1 1 2 1 1 2 1 Average Overweight (x) . | . . 1 1 1 1 . Largest Inventory Capacity 15 | 8 15 15 15 15 15 15 Average Capacity 11 | 7 9 15 15 15 15 10 Most Carried 15 | 3 15 15 15 15 15 15 Average Carried 11 | 1 8 14 14 14 14 10 Final Capacity 15 | 8 15 15 15 15 15 10 Final Carried 15 | 3 15 14 15 15 15 10 Class Distribution -------------------- 98% | Mutant Dominant Class ---------------- Mutant | -10/Materials Mutant | -10/Mines Mutant | -9/Materials Mutant | -9/Mines Mutant | -8/Materials Mutant | -7/Factory Resources | -11 -10 -10 -9 -9 -8 -7 ----------- Run | Scr Mat Min Mat Min Mat Fac Matter Collected 1478 | 219 276 53 40 10 266 614 Remotely . | . . . . . . . Salvage Created 2048 | . 707 238 70 216 284 533 Parts 60 | . 13 4 1 1 16 25 Haulers Intercepted 5 | . 2 . 1 . 1 1 Recyclers Shooed 1 | . . . . . . 1 Parts Field Recycled . | . . . . . . . Retrieved Matter . | . . . . . . . Parts Self-Destructed . | . . . . . . . Prevented . | . . . . . . . Kills | -11 -10 -10 -9 -9 -8 -7 ------- Run | Scr Mat Min Mat Min Mat Fac Combat Hostiles Destroyed 29 | . 10 5 . 3 4 7 Melee 8 | . 4 2 . 2 . . Guns 8 | . 2 . . . 4 2 Cannons 5 | . . . . . . 5 Classes Destroyed 12 | . 6 . . 2 2 2 Worker 4 | . 1 1 . 2 . . Builder 2 | . . . . 1 . 1 Tunneler 2 | . . . . 2 . . Hauler 5 | . 2 . 1 . 1 1 Recycler 7 | . 2 . . . . 5 Operator 1 | . 1 . . . . . Watcher 4 | . 3 . 1 . . . Swarmer 3 | . . . . . . 3 Grunt 21 | . 10 5 . 3 1 2 Brawler 1 | . . . . . 1 . Sentry 3 | . . . . . 2 1 Programmer 1 | . . . . . . 1 Best Kill Streak 3 | . 3 2 1 3 2 3 Combat Bots Only 3 | . 2 2 . 3 2 3 Max Kills in Single Turn 1 | . 1 1 1 1 1 1 Gunslinging . | . . . . . . . Exploded . | . . . . . . . Melee 1 | . 1 1 . 1 . . Uniques/NPCs Destroyed . | . . . . . . . Combat | -11 -10 -10 -9 -9 -8 -7 -------- Run | Scr Mat Min Mat Min Mat Fac Damage Taken 2137 | . 440 273 133 180 225 886 Core 474 | . 68 63 35 90 33 185 Absorbed by Shields . | . . . . . . . Redirected to Shielding 76 | . . . 2 5 . 69 Core Remaining (%) 77 | 100 . 47 . 68 94 . Volleys Fired 99 | . 11 . . . 17 71 Largest 2 | . 2 . . . 2 2 Hottest 73 | . 40 . . . 50 73 Shots Fired 167 | . 22 . . . 34 111 Gun 96 | . 22 . . . 34 40 Cannon 71 | . . . . . . 71 Launcher . | . . . . . . . Special . | . . . . . . . Kinetic 167 | . 22 . . . 34 111 Thermal . | . . . . . . . Explosive . | . . . . . . . Electromagnetic . | . . . . . . . Robot Hit Streak 14 | . 13 . . . 12 14 Robot Miss Streak 3 | . 1 . . . 1 3 Penetration Max . | . . . . . . . Secondary Targets . | . . . . . . . Shots Hit Robots 166 | . 46 14 3 17 28 58 Core Hits 47 | . 11 2 . 2 10 22 Critical Kills 2 | . . 1 . . 1 . Critical Parts Destroyed 21 | . 8 4 . 4 4 1 Critical Strikes 28 | . 8 5 . 4 5 6 Destroy 4 | . . . . . 3 1 Blast 5 | . . . . . . 5 Smash 19 | . 8 5 . 4 2 . Melee Attacks 86 | . 38 18 3 23 4 . Impact 86 | . 38 18 3 23 4 . Slashing . | . . . . . . . Piercing . | . . . . . . . Sneak Attacks 18 | . 6 4 2 6 . . Combat Hostiles 2 | . . 2 . . . . Follow-up Attacks 9 | . 4 2 1 2 . . Damage Inflicted 4990 | . 1483 631 203 779 511 1383 Guns 1038 | . 153 . . . 437 448 Cannons 935 | . . . . . . 935 Explosions . | . . . . . . . Melee 3017 | . 1330 631 203 779 74 . Ramming . | . . . . . . . Kinetic 1973 | . 153 . . . 437 1383 Thermal . | . . . . . . . Explosive . | . . . . . . . Electromagnetic . | . . . . . . . Impact 3017 | . 1330 631 203 779 74 . Slashing . | . . . . . . . Piercing . | . . . . . . . Highest Corruption 4 | . 4 4 . . . . Average Corruption 3 | . 2 4 . . . . Corruption Purged . | . . . . . . . Corruption Blocked . | . . . . . . . Effects 35 | . 22 13 . . . . Message Errors 8 | . 5 3 . . . . Matter Fused 8 | . 5 3 . . . . Heat Flow Errors 3 | . 2 1 . . . . Energy Discharges 7 | . 3 4 . . . . Parts Rejected 1 | . 1 . . . . . Data Loss (minor) 5 | . 4 1 . . . . Data Loss (major) 1 | . . 1 . . . . Alerts 2 | . 2 . . . . . Overload Shots . | . . . . . . . Overflow Damage 1415 | . 625 270 43 377 74 26 Projectiles 26 | . . . . . . 26 Explosions . | . . . . . . . Melee 1389 | . 625 270 43 377 74 . Knockbacks 18 | . 3 3 . 3 . 9 Impact 9 | . 3 3 . 3 . . Kinetic 9 | . . . . . . 9 Secondary . | . . . . . . . Self-Inflicted Damage . | . . . . . . . Shots . | . . . . . . . Rammed . | . . . . . . . Targets Rammed . | . . . . . . . Kicked . | . . . . . . . Crushed . | . . . . . . . Highest Temperature 320 | . 201 204 . 11 36 320 Average Temperature 66 | . 60 99 . 11 15 79 Received Heat Transfer 900 | . 195 153 27 117 108 300 Siege Activations . | . . . . . . . Robots Corrupted . | . . . . . . . Combat Hostiles . | . . . . . . . Parts Fried 35 | . 20 3 4 8 . . Impact Corruptions 49 | . 23 8 2 13 3 . Robots Melted . | . . . . . . . Combat Hostiles . | . . . . . . . Parts Melted . | . . . . . . . Heat Transferred . | . . . . . . . Parts Sabotaged . | . . . . . . . Parts Stolen . | . . . . . . . Parts Stripped . | . . . . . . . Power Chain Reactions . | . . . . . . . Missiles Intercepted . | . . . . . . . Alert | -11 -10 -10 -9 -9 -8 -7 ------- Run | Scr Mat Min Mat Min Mat Fac Peak Influence 186 | . 169 119 133 118 186 128 Initial 43 | . . 4 19 43 19 33 Average 48 | . 46 37 51 51 99 36 Maximum Alert Level . | . . . . . . . Low Security (%) 100 | 100 100 100 100 100 100 100 Level 1 . | . . . . . . . Level 2 . | . . . . . . . Level 3 . | . . . . . . . Level 4 . | . . . . . . . Level 5 . | . . . . . . . High Security . | . . . . . . . Max Security . | . . . . . . . Squads Dispatched 7 | . 3 . 2 . . 2 Investigation 1 | . . . 1 . . . Extermination 1 | . . . . . . 1 Reinforcement 5 | . 3 . 1 . . 1 Assault . | . . . . . . . Garrison . | . . . . . . . Intercept . | . . . . . . . Searches Triggered . | . . . . . . . Construction Impeded 1 | . . . . . . 1 Haulers Reinforced . | . . . . . . . Active Scanning Responses . | . . . . . . . Cargo Convoy Interrupts 1 | . . . . . . 1 Stealth | -11 -10 -10 -9 -9 -8 -7 --------- Run | Scr Mat Min Mat Min Mat Fac Distress Signals 5 | . 1 . 1 1 2 . Communications Jammed . | . . . . . . . Distress Signals . | . . . . . . . Times Spotted 76 | . 18 7 8 4 16 23 Peak Tracking Total 11 | . 3 2 5 2 5 11 Tactical Retreats 5 | . 1 1 . 1 1 1 Traps | -11 -10 -10 -9 -9 -8 -7 ------- Run | Scr Mat Min Mat Min Mat Fac Traps Triggered 7 | . 6 . 1 . . . Indirectly . | . . . . . . . Trap Hack Attempts . | . . . . . . . Triggered . | . . . . . . . Disarmed . | . . . . . . . Reprogrammed . | . . . . . . . Reused 1 | . . 1 . . . . Traps Extracted . | . . . . . . . Installed 5 | . . 5 . . . . Triggered 1 | . . 1 . . . . Machines | -11 -10 -10 -9 -9 -8 -7 ---------- Run | Scr Mat Min Mat Min Mat Fac Machines Disabled 4 | . 1 . . . . 3 Max in Single Turn 1 | . 1 . . . . 1 Machines Sabotaged . | . . . . . . . Garrisons Compromised . | . . . . . . . Overloaded Fab Kills . | . . . . . . . Hacking | -11 -10 -10 -9 -9 -8 -7 --------- Run | Scr Mat Min Mat Min Mat Fac Machines Accessed 3 | . 1 . . 1 . 1 Terminals 1 | . 1 . . . . . Fabricators 1 | . . . . . . 1 Repair Stations . | . . . . . . . Recycling Units . | . . . . . . . Scanalyzers . | . . . . . . . Garrison Access . | . . . . . . . Total Hacks 5 | . 2 . . 1 . 2 Successful 3 | . 2 . . 1 . . Failed 2 | . . . . . . 2 Catastrophic . | . . . . . . . Database Lockouts . | . . . . . . . Manual 2 | . 2 . . . . . Terminals 2 | . 2 . . . . . Fabricators 2 | . . . . . . 2 Repair Stations . | . . . . . . . Recycling Units . | . . . . . . . Scanalyzers . | . . . . . . . Garrison Access . | . . . . . . . Terminal Hacks 1 | . . . . 1 . . Open Door 1 | . . . . 1 . . Fabricator Hacks . | . . . . . . . Repair Station Hacks . | . . . . . . . Recycling Unit Hacks . | . . . . . . . Scanalyzer . | . . . . . . . Garrison Access Hacks . | . . . . . . . Unauthorized Hacks 2 | . 2 . . . . . Terminals 2 | . 2 . . . . . Track 1 | . 1 . . . . . Botnet 1 | . 1 . . . . . Fabricators . | . . . . . . . Repair Stations . | . . . . . . . Recycling Units . | . . . . . . . Scanalyzers . | . . . . . . . Garrison Access . | . . . . . . . Data Cores Recovered . | . . . . . . . Used . | . . . . . . . Hacking Detections 2 | . 1 . . . . 1 Full Trace Events . | . . . . . . . Feedback Events . | . . . . . . . Feedback Blocked . | . . . . . . . Robot Schematics Acquired . | . . . . . . . Robots Built . | . . . . . . . Authchips . | . . . . . . . Time . | . . . . . . . Total Robot Build Rating . | . . . . . . . Part Schematics Acquired . | . . . . . . . Parts Built . | . . . . . . . Authchips . | . . . . . . . Time . | . . . . . . . Total Part Build Rating . | . . . . . . . Parts Repaired . | . . . . . . . Time . | . . . . . . . Parts Recycled . | . . . . . . . Recycled Matter . | . . . . . . . Retrieved Matter . | . . . . . . . Retrieved Components . | . . . . . . . Parts Scanalyzed . | . . . . . . . Part Schematics Acquired . | . . . . . . . Parts Damaged . | . . . . . . . Bothacking | -11 -10 -10 -9 -9 -8 -7 ------------ Run | Scr Mat Min Mat Min Mat Fac Used RIF Installer . | . . . . . . . Robots Hacked . | . . . . . . . Non-combat . | . . . . . . . Combat . | . . . . . . . Robot Hacks Applied . | . . . . . . . Relay Couplers Released . | . . . . . . . Fabnet Peak Effective % . | . . . . . . . Robots Rewired . | . . . . . . . Allies Hacked . | . . . . . . . Hacks Repelled . | . . . . . . . Allies | -11 -10 -10 -9 -9 -8 -7 -------- Run | Scr Mat Min Mat Min Mat Fac Total Allies 6 | . . 1 . 5 . . Largest Group 5 | . . 1 1 5 5 . Highest-Rated Group 79 | . . 31 31 79 79 . Highest-Rated Ally 31 | . . 31 31 31 31 . Total Orders . | . . . . . . . Ally Attacks 56 | . . . 8 12 36 . Total Damage 617 | . . . 63 168 386 . Kills 10 | . . . 3 1 6 . Allies Corrupted . | . . . . . . . Allies Melted 1 | . . . . 1 . . Intel | -11 -10 -10 -9 -9 -8 -7 ------- Run | Scr Mat Min Mat Min Mat Fac Robot Analysis Total . | . . . . . . . Derelict Logs Recovered 2 | . . 1 . 1 . . Drone Launches . | . . . . . . . Drone Recoveries . | . . . . . . . Exploration | -11 -10 -10 -9 -9 -8 -7 ------------- Run | Scr Mat Min Mat Min Mat Fac Turns Passed 5560 | 71 1801 628 195 612 614 1639 Spaces Moved 3001 | 42 845 472 139 448 274 781 Core 6 | 6 . . . . . . Treads 718 | 25 693 . . . . . Legs 984 | 11 . . . . 192 781 Wheels 1293 | . 152 472 139 448 82 . Hover . | . . . . . . . Flight . | . . . . . . . Fastest Speed 50 | 50 100 115 115 115 115 120 Average Speed 142 | 138 155 115 115 115 171 156 Slowest Speed 240 | 160 240 130 115 115 190 200 Overloaded Moves . | . . . . . . . Propulsion Burnouts . | . . . . . . . Robots Hopped . | . . . . . . . Cave-ins Triggered . | . . . . . . . Exploration Rate (%) 48 | 3 95 85 19 90 32 15 Regions Visited 6 Branch Regions 2 Pre-discovered Areas 1 | . . 1 . . . . Known Exits Taken 1 | . . . . . 1 . Unknown Exits Taken 5 | 1 1 1 1 1 . . Scrap Searched 3 | . . 1 . 2 . . Spaces Dug 13 | . 3 . . . . 10 Terrain Destroyed 30 | . 3 . . . . 27 Melee 3 | . 3 . . . . . Projectile 27 | . . . . . . 27 AOE . | . . . . . . . Terrain Rammed . | . . . . . . . Walls Destroyed . | . . . . . . . Machines Disabled . | . . . . . . . Actions | -11 -10 -10 -9 -9 -8 -7 --------- Run | Scr Mat Min Mat Min Mat Fac Total 4039 | 52 1265 532 176 516 394 1104 Wait 720 | . 334 37 21 39 72 217 Move 2995 | 41 844 471 138 447 273 781 Hop . | . . . . . . . Pick Up 39 | 1 18 . 5 5 3 7 Fast Attach 37 | 8 11 1 2 . 10 5 Attach 11 | . 1 1 . 1 1 7 Detach 3 | 2 . . . . . 1 Swap 14 | . 4 . 2 . 3 5 Drop 42 | . 10 1 6 4 11 10 Fire 99 | . 11 . . . 17 71 Melee 74 | . 32 16 2 20 4 . Ram . | . . . . . . . Kick . | . . . . . . . Crush . | . . . . . . . Escape Stasis . | . . . . . . . Rewire . | . . . . . . . Trap 5 | . . 5 . . . . Miscellaneous . | . . . . . . . Route ------- -11/Scrapyard -10/Materials (discovered 5 exits: [*Mat x3] / [*Min x2]) -10/Mines (discovered 3 exits: [*Mat x2] / [*Exi]) -9/Materials -9/Mines (discovered 2 exits: *Mat x2) -8/Materials -7/Factory History --------- Turn | Location | Event 11 | -11/Scrapyard | Discovered new exit (range 14) 72 | -11/Scrapyard | Entered Materials 331 | -10/Materials | Build established: Mutant 621 | -10/Materials | Discovered new exit (range 8) 688 | -10/Materials | Discovered new exit (range 9) 691 | -10/Materials | Discovered new exit (range 16) 843 | -10/Materials | Discovered new exit (range 14) 1092 | -10/Materials | Discovered new exit (range 4) 1873 | -10/Materials | Entered Mines 1895 | -10/Mines | Discovered new exit (range 5) 1973 | -10/Mines | Deemed a non-threat by the Exiles lab entrance 2011 | -10/Mines | Found a hidden stash of uninstalled traps 2418 | -10/Mines | Discovered new exit (range 6) 2421 | -10/Mines | Core integrity fell below 50% 2484 | -10/Mines | Received a Mining Laser from a helpful Derelict 2486 | -10/Mines | Discovered new exit (range 8) 2501 | -10/Mines | Entered Materials 2501 | -9/Materials | Accompanied by 1 ally 2501 | -9/Materials | Evolved 2 slots: Utility x2 2658 | -9/Materials | Discovered new exit (range 10) 2696 | -9/Materials | Entered Mines 2699 | -9/Mines | Met a Derelict who couldn't figure out how to use a Trap Extractor 2742 | -9/Mines | Met a Derelict bent on vengeance 2915 | -9/Mines | A weapon hastily lodged in a ceiling crevice suddenly fell to the ground 2953 | -9/Mines | Learned Materials interactive machine intel 3004 | -9/Mines | Discovered new exit (range 6) 3130 | -9/Mines | Discovered new exit (range 5) 3203 | -9/Mines | Assisted by bots powering up and referring to "LRC-V3" 3308 | -9/Mines | Entered Materials 3308 | -8/Materials | Accompanied by 5 allies 3308 | -8/Materials | Evolved 2 slots: Utility x2 3309 | -8/Materials | Loaded intel: 17 interactive machine locations 3313 | -8/Materials | Led the pair of lost Derelicts to an unsafe place 3918 | -8/Materials | Discovered new exit (range 3) 3920 | -8/Materials | Identified exit to Factory 3922 | -8/Materials | Entered Factory 3922 | -7/Factory | Evolved 2 slots: Utility x2 5211 | -7/Factory | Lost 3 parts (1p1n1u) 5561 | -7/Factory | Cargo convoy interrupted 5561 | -7/Factory | Self-destructed Last Messages --------------- 05555_ K-01 Serf collects debris. 05555_ Hrd. Light Armor Plating destroyed. 05557_ R-06 Scavenger collects Med. Storage Unit. 05557_ K-01 Serf collects debris. 05559_ Slug penetrates A-27 Freighter. 05559_ K-01 Serf destroyed. 05560_ K-01 Serf collects debris. 05560_ C-30 ARC bursts open, deploying its payload. 05560_ P-60 Hacker unfolds itself. 05560_ X-57 Shotgunner unfolds itself. 05560_ X-62 Marksman unfolds itself. 05560_ X-57 Shotgunner unfolds itself. 05560_ K-01 Serf destroyed. 05561_ ALERT: Cargo convoy interrupted, initiating access lockdown. 05561_ C-30 ARC bursts open, deploying its payload. 05561_ H-55 Commando unfolds itself. 05561_ X-67 Chaingunner unfolds itself. 05561_ M-28 Smith unfolds itself. 05561_ Penetrated by Slug. 05561_ U-05 Engineer destroyed. Map ----- +----------------------------------------------------+ | ?????????????????????????????????????????????????? | | ?????????????????????????????????????????????????? | | ?????????????????????????????????????????????????? | | ?????????????????????????????????????????????????? | | ?????????????????????????????????????????????????? | | ?????????????????????????????????????????????????? | | ?????????????????????????????????????????????????? | | ?????????????????????????????????????????????????? | | ?????????????????????????????????????????????????? | | ?????????????????????????????????????????????????? | | ?????????????????????????????????????????????????? | | ?????????????????????????????????????????????????? | | ?????????????????????????????????????????????????? | | ?????????????????????????????????????????????????? | | ?????????????????????????????????????????????????? | | ?????????????????????????????????????????????????? | | ?????????????????????????????????????????????????? | | ?????????????????????????????????????????????????? | | ?????????????????????????????????????????????????? | | ??????????????????? ????################## #???? | | ????????????????# # u ????? | | ????????????????# # k #???????????? | | ????????????????# # #???????????? | | ????????????????????? ?# != #???????????? | | ?????????????????????? # *k%k w #???????????? | | ??????????????????????? #@!r%= #???????????? | | ??????????????????? x%*!* A #???????????? | | ??????????????????? x%#=%% u #???????????? | | ??????????????????? # = #???????????? | | ????????????????? x?# #???????????? | | ????????????????# ??# %mi % #???????????? | | ????????????????# ???# xx #???????????? | | ????????????????# ???###x########;######??????? | | ????????????????# ????# h #?????? | | ????????????????# ?????# """"""""" #?????? | | ????????????????# ????? + #?????? | | ????????????????# ???? # """"""""" #?????? | | ????????????????#???? # ! #?????? | | ???????????????????? ?# !! #?????? | | ???????????????????? ??# !| #?????? | | ????????????????????????# !| #?????? | | ????????????????????????#################????????? | | ????????????????????????##"###########???????????? | | ????????????????????????# #???????????? | | ????????????????????????# #???????????? | | ????????????????????????# #???????????? | | ????????????????????????# """" """ #???????????? | | ????????????????# ??????# """" """ #???????????? | | ????????????????# ?? # """" """ #???????????? | | ????????????????# # """" #???????????? | +----------------------------------------------------+ Best States ------------- Heat Dissipation 48 Energy Generation 18 Energy Capacity 290 Matter Stores 300 Matter Capacity 300 Sight Range 16 Robot Scan Range 14 Terrain Scan Density 10 Armor Coverage 150 Resistance: EX 25 Propulsion Shielding 33 Utility Shielding 33 Evasion (%) 55 Targeting Accuracy 11 Target Analysis 7 Recoil Reduction 2 Item Schematics ----------------- None Robot Schematics ------------------ None Fabricated ------------ Nothing Alien Tech Used ----------------- None Achievements -------------- None Challenges ------------ None Game ------ Seed PointCentriumTreads Manual? 0 Play Time 00:35:49 Cumulative 278.7 hours Start 2022.05.22 @ 09:51:34 End 2022.05.22 @ 12:48:19 Sessions 3 Manual Loads 0 Difficulty Rogue Special Mode None Game No. 518 Rogue 363 Adventurer 148 Explorer 7 Win Type - Total 10 Types 8/0/1/1/0/0/0/0/0 Lore% 72 Gallery% 84 Achievement% 66 Wizard Run 0 Options --------- ASCII 0 Keyboard 0 Movement Numpad Keybinds 0 Fullscreen 1 Font 18/SmallcapsGlow Map View 76x50 Tactical HUD 1 Map Filters NONE Filters NONE Steam 1 RUN: d83e9b5d-19a1-4c74-8cd7-7aa36f2ad014